Workbook

Sheet WDV
A1: Year | B1: Opening Book Value | C1: Depreciation (15%) | D1: Closing Book Value
A2: 1 | B2: $100,000.00 | C2: =B2*15% -> $15,000.00 | D2: =B2-C2 -> $85,000.00
A3: 2 | B3: =D2 -> $85,000.00 | C3: =B3*15% -> $12,750.00 | D3: =B3-C3 -> $72,250.00
A4: 3 | B4: =D3 -> $72,250.00 | C4: $10,837.50 | D4: $61,412.50
A5: 4 | B5: $61,412.50 | C5: $9,211.88 | D5: $52,200.63
A6: 5 | B6: $52,200.63 | C6: $7,830.09 | D6: $44,370.53
A7: 6 | B7: $44,370.53 | C7: $6,655.58 | D7: $37,714.95
A8: 7 | B8: $37,714.95 | C8: $5,657.24 | D8: $32,057.71
A9: 8 | B9: $32,057.71 | C9: $4,808.66 | D9: $27,249.05
A10: 9 | B10: $27,249.05 | C10: $4,087.36 | D10: $23,161.69
A11: 10 | B11: $23,161.69 | C11: $3,474.25 | D11: $19,687.44
A12: 11 | B12: $19,687.44 | C12: $2,953.12 | D12: $16,734.32
A13: 12 | B13: $16,734.32 | C13: $2,510.15 | D13: $14,224.18

Sheet DB
A1: Year | B1: Opening Book Value | C1: Depreciation | D1: Closing Book Value
A2: 1 | B2: $100,000.00 | C2: =DB($B$2,15000,$A$13,A2) -> $14,600.00 | D2: =B2-C2 -> $85,400.00
A3: 2 | B3: =D2 -> $85,400.00 | C3: =DB($B$2,15000,$A$13,A3) -> $12,468.40 | D3: =B3-C3 -> $72,931.60
A4: 3 | B4: =D3 -> $72,931.60 | C4: $10,648.01 | D4: =B4-C4 -> $62,283.59
A5: 4 | B5: =D4 -> $62,283.59 | C5: $9,093.40 | D5: =B5-C5 -> $53,190.18
A6: 5 | B6: =D5 -> $53,190.18 | C6: $7,765.77 | D6: =B6-C6 -> $45,424.42
A7: 6 | B7: =D6 -> $45,424.42 | C7: $6,631.96 | D7: =B7-C7 -> $38,792.45
A8: 7 | B8: =D7 -> $38,792.45 | C8: $5,663.70 | D8: =B8-C8 -> $33,128.75
A9: 8 | B9: =D8 -> $33,128.75 | C9: $4,836.80 | D9: =B9-C9 -> $28,291.96
A10: 9 | B10: =D9 -> $28,291.96 | C10: $4,130.63 | D10: =B10-C10 -> $24,161.33
A11: 10 | B11: =D10 -> $24,161.33 | C11: $3,527.55 | D11: =B11-C11 -> $20,633.78
A12: 11 | B12: =D11 -> $20,633.78 | C12: $3,012.53 | D12: =B12-C12 -> $17,621.24
A13: 12 | B13: =D12 -> $17,621.24 | C13: $2,572.70 | D13: =B13-C13 -> $15,048.54
